bitfinex/quotes_SOLUSD_20250308
["timestamp","ask_amount","ask_price","bid_price","bid_amount"]
[1741396747352,33.52018587,139.93,139.87,33.55018587]
[1741396748651,122.96628587,139.94,139.88,33.52018587]
[1741396749751,82.3,139.94,139.89,33.52018587]
[1741396750847,82.3,139.94,139.9,7.1479]
[1741396751752,33.52018587,139.96,139.9,40.66808587]
[1741396753276,20.98102375,139.96,139.9,28.12892375]
[1741396754672,237.14,139.98,139.93,20.98102375]
[1741396754673,244.2839,139.98,139.93,20.98102375]
[1741396754969,237.14,139.98,139.93,20.98102375]
[1741396755377,244.2839,139.98,139.93,20.98102375]
[1741396755573,244.2838,139.98,139.93,28.12732375]
[1741396755777,244.2838,139.98,139.93,20.98102375]
[1741396755978,20.98102375,139.97,139.91,1.6051]
[1741396756289,20.98102375,139.96,139.91,1.6051]
[1741396756576,20.98102375,139.97,139.91,22.58612375]
[1741396756773,0.033,139.99,139.95,20.98102375]
[1741396756977,0.033,139.99,139.96,20.98102375]
[1741396757177,7.1763,139.99,139.94,27.68102375]
[1741396757360,28.15732375,139.99,139.94,6.7]
[1741396757565,7.1763,139.99,139.94,27.68102375]
[1741396757885,20.98102375,139.98,139.94,6.7]
[1741396758289,0.033,139.99,139.95,20.98102375]
[1741396760190,20.98102375,139.96,139.91,1.6051]
[1741396760486,20.98102375,139.96,139.9,27.70102375]
[1741396762085,20.98102375,139.96,139.9,20.98102375]
[1741396762384,7.1454,139.95,139.9,20.98102375]
[1741396763469,7.1438,139.98,139.91,20.98102375]
[1741396763673,20.98102375,139.97,139.89,7.1484]
[1741396764002,20.98102375,139.97,139.91,20.98102375]
[1741396764487,20.98102375,139.95,139.89,27.68102375]
[1741396764864,20.98102375,139.95,139.89,20.98102375]
[1741396765187,45.98802375,139.96,139.9,20.98102375]
[1741396766085,7.1445,139.97,139.92,20.98102375]
[1741396766289,7.1445,139.97,139.93,20.98102375]
[1741396766788,28.12482375,139.98,139.92,20.98102375]
[1741396767485,7.1438,139.98,139.93,20.98102375]
[1741396768785,7.1765,139.99,139.94,20.98102375]
[1741396770692,7.1765,139.99,139.95,20.98102375]
[1741396771786,0.033,139.99,139.96,20.98102375]
[1741396772289,0.033,139.99,139.95,20.98102375]
[1741396774106,0.033,139.99,139.96,20.98102375]
[1741396774480,0.033,139.99,139.98,20.98102375]
[1741396774970,0.033,139.99,139.98,28.12482375]
[1741396775382,0.033,139.99,139.98,20.98102375]
[1741396775894,0.033,139.99,139.98,28.12482375]
[1741396776598,0.033,139.99,139.98,20.98102375]
[1741396777474,0.033,139.99,139.98,34.76482375]
[1741396777670,0.033,139.99,139.98,55.7458475]
[1741396778595,0.033,139.99,139.98,34.76482375]
[1741396779094,0.033,139.99,139.98,27.62102375]
[1741396779299,0.033,139.99,139.98,20.98102375]
[1741396786798,0.033,139.99,139.98,28.12482375]
[1741396787625,0.033,139.99,139.98,20.98102375]
[1741396790029,0.033,139.99,139.96,7.1447]
[1741396790030,0.033,139.99,139.91,1.6169]
[1741396790230,0.033,139.99,139.94,20.98102375]
[1741396790515,20.98102375,139.98,139.92,20.98102375]
[1741396790719,27.49322375,139.98,139.92,20.98102375]
[1741396790891,25.0052,139.97,139.92,20.98102375]
[1741396791211,7.1443,139.97,139.93,20.98102375]
[1741396792008,6.5122,139.98,139.94,20.98102375]
[1741396792202,6.5122,139.98,139.95,20.98102375]
[1741396793426,0.033,139.99,139.96,20.98102375]
[1741396793622,0.033,139.99,139.95,20.98102375]
[1741396795514,21.01402375,139.99,139.94,20.98102375]
[1741396796023,0.033,139.99,139.94,20.98102375]
[1741396797104,0.033,139.99,139.95,20.98102375]
[1741396799425,0.033,139.99,139.95,28.12642375]
[1741396799923,0.033,139.99,139.95,20.98102375]
[1741396800715,21.01402375,139.99,139.94,20.98102375]
[1741396801623,21.01402375,139.99,139.91,20.98102375]
[1741396801624,20.98102375,139.97,139.91,20.98102375]
[1741396802006,6.56,139.98,139.92,20.98102375]
[1741396802210,27.54102375,139.98,139.93,20.98102375]
[1741396802409,27.54102375,139.98,139.92,20.98102375]
[1741396802607,13.7038,139.98,139.93,20.98102375]
[1741396802810,13.7038,139.98,139.94,20.98102375]
[1741396803423,13.7038,139.98,139.93,20.98102375]
[1741396803630,34.68482375,139.98,139.93,20.98102375]
[1741396803831,20.98102375,139.97,139.91,20.98102375]
[1741396804025,20.98102375,139.97,139.92,20.98102375]
[1741396804242,20.98102375,139.97,139.91,20.98102375]
[1741396804532,7.1448,139.96,139.92,20.98102375]
[1741396805109,6.56,139.98,139.94,20.98102375]
[1741396805313,0.033,139.99,139.97,20.98102375]
[1741396805612,0.033,139.99,139.98,20.98102375]
[1741396808129,0.033,139.99,139.98,28.12482375]
[1741396809341,0.033,139.99,139.98,7.1438]
[1741396809521,0.033,139.99,139.98,28.12482375]
[1741396811238,0.033,139.99,139.98,20.98102375]
[1741396812649,0.033,139.99,139.97,20.98102375]
[1741396813651,0.033,139.99,139.98,20.98102375]
[1741396815153,0.033,139.99,139.97,20.98102375]
[1741396816234,0.033,139.99,139.98,20.98102375]
[1741396816750,0.033,139.99,139.94,1.5915]
[1741396816941,20.98102375,139.98,139.92,20.98102375]
[1741396817137,20.98102375,139.97,139.91,20.98102375]
[1741396817349,20.98102375,139.96,139.9,20.98102375]
[1741396817858,20.98102375,139.97,139.91,20.98102375]
[1741396818556,7.1448,139.96,139.91,20.98102375]
[1741396819150,7.1448,139.96,139.92,20.98102375]
[1741396819543,7.1445,139.97,139.93,20.98102375]
[1741396819842,28.12552375,139.97,139.91,20.98102375]
[1741396820257,20.98102375,139.96,139.9,20.98102375]
[1741396820636,7.1454,139.95,139.9,20.98102375]
[1741396821255,20.98102375,139.94,139.88,0.03]
[1741396821431,20.98102375,139.93,139.88,21.01102375]
[1741396821626,7.8876,139.92,139.88,0.03]
[1741396821832,28.86862375,139.92,139.88,0.03]
[1741396822028,20.98102375,139.91,139.88,0.03]
[1741396822243,7.8876,139.92,139.88,0.03]
[1741396822447,28.86862375,139.92,139.88,0.03]
[1741396822649,28.12842375,139.91,139.88,0.03]
[1741396823031,20.98102375,139.91,139.88,0.03]
[1741396823434,28.86862375,139.92,139.88,0.03]
[1741396824466,7.8876,139.92,139.88,0.03]
[1741396825948,7.8876,139.92,139.88,21.01102375]
[1741396826263,7.9151,139.96,139.91,20.98102375]
[1741396826467,7.9151,139.96,139.93,20.98102375]
[1741396826468,6.4067,139.96,139.93,20.98102375]
[1741396827350,6.54,139.98,139.93,28.12722375]
[1741396827556,0.033,139.99,139.94,20.98102375]
[1741396827755,0.033,139.99,139.95,20.98102375]
[1741396829243,0.033,139.99,139.95,28.12612375]
[1741396829443,0.033,139.99,139.96,20.98102375]
[1741396829639,0.033,139.99,139.98,20.98102375]
[1741396831940,0.033,139.99,139.98,28.12482375]
[1741396832661,0.033,139.99,139.98,20.98102375]
[1741396832868,0.033,139.99,139.97,20.98102375]
[1741396833446,0.033,139.99,139.96,20.98102375]
[1741396834173,0.033,139.99,139.98,20.98102375]
[1741396836257,0.033,139.99,139.98,28.12482375]
[1741396837067,0.033,139.99,139.98,29.74722375]
[1741396837963,1.5414,140.1,139.98,204.25883316]
[1741396838173,1.5414,140.1,140.06,20.98102375]
[1741396839178,0.033,140.1,140.06,20.98102375]
[1741396840575,20.98102375,140.07,140.0,28.3]
[1741396840774,20.98102375,140.05,140.0,28.3]
[1741396840974,20.98102375,140.06,140.0,49.28102375]
[1741396841158,22.62962375,140.07,140.01,20.98102375]
[1741396841360,103.28102375,140.09,140.03,20.98102375]
[1741396841578,8.1816,140.1,140.08,20.98102375]
[1741396841579,0.033,140.1,140.08,20.98102375]
[1741396841992,7.171,140.1,140.06,20.98102375]
[1741396842154,7.171,140.1,140.05,20.98102375]
[1741396842359,28.15202375,140.1,140.04,20.98102375]
[1741396842791,28.15202375,140.1,140.0,49.28102375]
[1741396842792,20.98102375,140.05,140.0,28.3]
[1741396842987,50.0,140.08,140.0,28.3]
[1741396842988,20.98102375,140.03,140.0,28.3]
[1741396843695,28.12272375,140.03,140.0,28.3]
[1741396845173,7.1417,140.03,140.0,28.3]
[1741396845375,20.0327,140.04,140.0,61.83404582]
[1741396847386,13.4727,140.04,140.0,61.83404582]
[1741396847577,13.4727,140.04,140.01,33.53404582]
[1741396848280,7.1398,140.06,140.03,33.53404582]
[1741396848577,7.1398,140.06,140.0,28.3]
[1741396848578,33.53404582,140.06,140.0,28.3]
[1741396848785,33.53404582,140.05,140.0,28.3]
[1741396848964,33.53404582,140.04,140.0,28.3]
[1741396849562,33.53404582,140.02,140.0,28.3]
[1741396849905,33.53404582,140.01,140.0,28.3]
[1741396850179,12.6069,140.02,140.0,28.3]
[1741396851080,7.1423,140.01,140.0,28.3]
[1741396851386,40.67634582,140.01,140.0,28.3]
[1741396852367,58.53214582,140.01,139.91,1.5044]
[1741396852574,33.53404582,139.98,139.93,33.53404582]
[1741396852777,33.53404582,139.99,139.93,33.53404582]
[1741396853096,7.1438,139.98,139.93,33.53404582]
[1741396853294,115.83404582,140.0,139.95,33.53404582]
[1741396853471,7.1434,139.99,139.95,33.53404582]
[1741396853909,7.1434,139.99,139.94,33.53404582]
[1741396855765,40.67744582,139.99,139.93,33.53404582]
[1741396856191,33.53404582,139.98,139.92,33.53404582]
[1741396856373,40.05404582,139.97,139.91,33.53404582]
[1741396856579,6.52,139.97,139.92,33.53404582]
[1741396856789,40.05404582,139.97,139.94,0.033]
[1741396857161,7.1448,139.96,139.94,0.033]
[1741396857366,13.6645,139.97,139.94,0.033]
[1741396858501,65.05944582,139.97,139.94,0.033]
[1741396859120,39.60094582,139.96,139.94,0.033]
[1741396859820,33.53404582,139.95,139.94,0.033]
[1741396861617,40.67944582,139.95,139.94,0.033]
[1741396861794,90.67944582,139.95,139.88,0.03]
[1741396861989,33.53404582,139.93,139.88,0.03]
[1741396862305,40.05404582,139.92,139.88,0.03]
[1741396863094,6.52,139.92,139.88,0.03]
[1741396863299,6.52,139.92,139.89,33.53404582]
[1741396863619,13.2119,139.96,139.91,33.53404582]
[1741396864592,6.0669,139.96,139.92,33.53404582]
[1741396864792,40.03404582,139.99,139.93,33.53404582]
[1741396865011,96.0049,140.0,139.95,33.53404582]
[1741396865194,154.78,140.01,139.97,33.53404582]
[1741396865809,33.53404582,139.99,139.9,1.6574]
[1741396865996,33.53404582,139.97,139.91,33.53404582]
[1741396866196,6.52,139.99,139.94,33.53404582]
[1741396866718,47.19784582,139.99,139.93,33.53404582]
[1741396866913,33.53404582,139.98,139.92,33.53404582]
[1741396867215,13.6638,139.99,139.9,1.6574]
[1741396867403,20.97976422,139.96,139.9,22.63716422]
[1741396867599,20.97976422,139.96,139.88,6.55]
[1741396867600,20.97976422,139.94,139.88,6.55]
[1741396867900,20.97976422,139.93,139.88,0.03]
[1741396868417,20.97976422,139.92,139.88,0.03]
[1741396868598,7.1474,139.91,139.88,0.03]
[1741396869294,7.1471,139.92,139.88,0.03]
[1741396869495,7.1465,139.93,139.88,33.61573499]
[1741396869713,6.5201,139.96,139.92,33.58573499]
[1741396869905,13.665,139.96,139.91,33.58573499]
[1741396870111,33.58573499,139.93,139.88,0.03]
[1741396870704,7.1469,139.92,139.88,0.03]
[1741396872322,33.58573499,139.91,139.88,0.03]
[1741396872698,7.1479,139.9,139.88,0.03]
[1741396874615,115.88573499,139.89,139.88,0.03]
[1741396874816,123.03413499,139.89,139.88,0.03]
[1741396875318,89.4484,139.89,139.88,0.03]
[1741396875723,140.90523499,139.89,139.83,2.0418888]
[1741396876022,33.58573499,139.85,139.83,2.0418888]
[1741396876198,33.58573499,139.84,139.83,2.0418888]
[1741396876807,40.73673499,139.84,139.83,2.0418888]
[1741396877725,7.151,139.84,139.83,2.0418888]
[1741396878219,40.73673499,139.84,139.83,2.0418888]
[1741396879621,7.151,139.84,139.83,2.0418888]
[1741396879822,33.58573499,139.86,139.83,2.0418888]
[1741396880125,7.1506,139.85,139.83,2.0418888]
[1741396880326,7.1501,139.86,139.83,2.0418888]
[1741396881314,13.7296,139.87,139.83,2.0418888]
[1741396881619,154.84,139.89,139.84,33.58573499]
[1741396881818,154.84,139.89,139.85,33.58573499]
[1741396882603,123.03283499,139.92,139.86,33.58573499]
[1741396882826,33.58573499,139.91,139.85,33.58573499]
[1741396883634,40.73363499,139.9,139.84,40.16573499]
[1741396885016,7.1479,139.9,139.84,40.16573499]
[1741396885221,7.1479,139.9,139.85,33.58573499]
[1741396885424,7.1479,139.9,139.84,40.16573499]
[1741396885615,40.73363499,139.9,139.84,40.16573499]
[1741396886230,33.58573499,139.89,139.84,6.58]
[1741396887636,82.3,139.92,139.85,33.58573499]
[1741396887637,40.73313499,139.91,139.85,33.58573499]
[1741396889150,7.1474,139.91,139.86,33.58573499]
[1741396889438,115.88573499,139.92,139.86,20.99522881]
[1741396889439,110.44222881,139.92,139.86,20.99522881]
[1741396890325,110.44222881,139.92,139.85,29.68052881]
[1741396892040,110.44222881,139.92,139.86,28.14472881]
[1741396892836,82.3,139.92,139.87,20.99522881]
[1741396893036,82.3,139.92,139.88,20.99522881]
[1741396894420,82.333,139.92,139.88,20.99522881]
[1741396894747,82.333,139.92,139.89,20.99522881]
[1741396894935,0.033,139.92,139.89,20.99522881]
[1741396895438,0.033,139.92,139.9,20.99522881]
[1741396895942,0.033,139.92,139.91,20.99522881]
[1741396896131,0.033,139.92,139.9,20.99522881]
[1741396898334,0.033,139.92,139.85,1.5349]
[1741396898545,21.02822881,139.92,139.86,20.99522881]
[1741396898728,20.99522881,139.91,139.85,22.53012881]
[1741396899137,7.1479,139.9,139.85,22.53012881]
[1741396900145,20.99522881,139.88,139.83,2.0718888]
[1741396900346,20.99522881,139.85,139.83,2.0718888]
[1741396901267,28.14622881,139.84,139.83,2.0718888]
[1741396901632,42.44882881,139.84,139.83,2.0718888]
[1741396902543,42.44882881,139.84,139.83,8.88e-05]
[1741396902969,50.0,139.82,139.73,20.99522881]
[1741396903271,7.153,139.8,139.75,20.99522881]
[1741396903468,28.14822881,139.8,139.74,20.99522881]
[1741396905071,28.14822881,139.8,139.71,6.4746]
[1741396905072,28.14782881,139.81,139.75,20.99522881]
[1741396906575,20.99522881,139.8,139.74,20.99522881]
[1741396907384,20.99522881,139.81,139.75,20.99522881]
[1741396907578,20.99522881,139.81,139.74,0.03]
[1741396907775,28.14672881,139.83,139.77,20.99522881]
[1741396907970,111.05782881,139.84,139.78,20.99522881]
[1741396908173,20.99522881,139.82,139.75,6.52]
[1741396908380,20.99522881,139.82,139.76,20.99522881]
[1741396908764,20.99522881,139.82,139.77,20.99522881]
[1741396908968,20.99522881,139.83,139.77,20.99522881]
[1741396909287,28.14682881,139.83,139.77,20.99522881]
[1741396909583,20.99522881,139.81,139.75,6.52]
[1741396909787,20.99522881,139.79,139.74,0.03]
[1741396910159,20.99522881,139.8,139.74,21.02522881]
[1741396910364,20.99522881,139.79,139.74,0.03]
[1741396910985,7.154,139.78,139.74,0.03]
[1741396911159,20.99522881,139.75,139.74,0.03]
[1741396911776,20.99522881,139.76,139.74,0.03]
[1741396912377,117.78782881,139.77,139.74,0.03]
[1741396912577,116.23512881,139.77,139.74,0.03]
[1741396912773,88.7199,139.77,139.74,0.03]
[1741396913088,89.4547,139.77,139.74,0.03]
[1741396913291,110.44992881,139.77,139.74,0.03]
[1741396913470,20.99522881,139.75,139.74,0.03]
[1741396913670,110.44992881,139.77,139.74,0.03]
[1741396914187,89.4547,139.77,139.74,0.03]
[1741396914565,6.4199,139.8,139.75,20.99522881]
[1741396914769,82.3,139.81,139.77,20.99522881]
[1741396915183,7.1535,139.8,139.76,20.99522881]
[1741396915487,7.1535,139.8,139.75,27.59522881]
[1741396915688,7.1535,139.8,139.76,20.99522881]
[1741396915985,40.42762881,139.83,139.77,20.99522881]
[1741396916293,7.152,139.82,139.77,20.99522881]
[1741396916771,7.152,139.82,139.78,20.99522881]
[1741396916975,7.151,139.84,139.81,20.99522881]
[1741396917180,7.1494,139.87,139.82,20.99522881]
[1741396917593,28.14462881,139.87,139.81,20.99522881]
[1741396917774,7.1494,139.87,139.81,20.99522881]
[1741396917975,7.1494,139.87,139.82,20.99522881]
[1741396919480,7.1824,139.87,139.82,20.99522881]
[1741396919680,7.1824,139.87,139.84,20.99522881]
[1741396919886,0.033,139.87,139.86,20.99522881]
[1741396920866,0.033,139.87,139.79,14.6799]
[1741396921098,0.033,139.87,139.82,20.99522881]
[1741396921300,0.033,139.87,139.82,33.61109606]
[1741396921884,0.033,139.87,139.84,33.61109606]
[1741396922092,0.033,139.87,139.85,33.61109606]
[1741396922295,0.033,139.87,139.84,33.61109606]
[1741396922501,33.64409606,139.87,139.79,1.5331]
[1741396922687,33.61109606,139.84,139.79,1.5331]
[1741396923082,33.61109606,139.83,139.78,6.62]
[1741396923405,33.61109606,139.81,139.76,1.5277]
[1741396923572,33.61109606,139.83,139.76,35.13879606]
[1741396923890,40.76209606,139.84,139.78,33.61109606]
[1741396924481,7.151,139.84,139.8,33.61109606]
[1741396924702,7.151,139.84,139.82,33.61109606]
[1741396924899,7.151,139.84,139.8,33.61109606]
[1741396925076,7.151,139.84,139.8,6.62]
[1741396925277,58.63959606,139.84,139.78,33.61109606]
[1741396925482,7.151,139.84,139.8,33.61109606]
[1741396925977,33.61109606,139.84,139.78,33.61109606]
[1741396926178,33.61109606,139.82,139.76,35.13879606]
[1741396926505,33.61109606,139.82,139.76,1.5277]
[1741396926706,33.61109606,139.82,139.76,35.13879606]
[1741396927006,33.61109606,139.8,139.74,0.03]
[1741396927207,33.61109606,139.78,139.74,0.03]
[1741396928397,25.0411,139.77,139.74,0.03]
[1741396928593,7.1546,139.77,139.74,0.03]
[1741396928797,7.1546,139.77,139.74,33.64109606]
[1741396928979,7.1546,139.77,139.74,0.03]
[1741396929375,25.0411,139.77,139.74,0.03]
[1741396930393,58.65219606,139.77,139.74,0.03]
[1741396930921,25.0411,139.77,139.74,0.03]
[1741396932393,17.8865,139.77,139.74,0.03]
[1741396936255,51.49759606,139.77,139.74,0.0001]
[1741396936566,17.8865,139.77,139.74,0.0001]
[1741396937857,17.8865,139.77,139.74,33.61119606]
[1741396938151,58.64849606,139.79,139.74,0.0001]
[1741396938354,94.41639606,139.79,139.74,0.0001]
[1741396939844,7.1535,139.79,139.78,33.61109606]
[1741396940146,17.8776,139.84,139.78,33.61109606]
[1741396940362,7.1521,139.82,139.79,33.61109606]
[1741396940561,7.1521,139.82,139.78,33.61109606]
[1741396942160,82.3,139.85,139.8,33.61109606]
[1741396942469,7.1507,139.85,139.82,33.61109606]
[1741396943568,7.1507,139.85,139.81,33.61109606]
[1741396943764,0.033,139.87,139.83,33.61109606]
[1741396944082,0.033,139.87,139.85,33.61109606]
[1741396944367,7.1826,139.87,139.85,33.61109606]
[1741396944770,7.1826,139.87,139.83,33.61109606]
[1741396945068,7.1826,139.87,139.84,33.61109606]
[1741396945367,0.033,139.87,139.84,33.61109606]
[1741396945570,0.033,139.87,139.85,33.61109606]
[1741396945768,0.033,139.87,139.86,33.61109606]
[1741396946066,0.033,139.87,139.85,33.61109606]
[1741396946241,0.033,139.87,139.86,33.61109606]
[1741396946563,0.033,139.87,139.85,33.61109606]
[1741396947062,0.033,139.87,139.86,33.61109606]
[1741396947634,0.033,139.87,139.86,67.22219212]
[1741396947875,0.033,139.87,139.86,33.61109606]
[1741396948263,0.033,139.87,139.85,1.6528]
[1741396948577,0.033,139.87,139.85,35.26389606]
[1741396948782,0.033,139.87,139.86,33.61109606]
[1741396950066,0.033,139.87,139.86,67.22219212]
[1741396951081,0.033,139.87,139.86,33.61109606]
[1741396951272,0.033,139.87,139.86,40.31109606]
[1741396952380,33.64409606,139.87,139.8,35.26389606]
[1741396952682,33.61109606,139.85,139.79,40.31109606]
[1741396953179,33.61109606,139.83,139.77,35.26389606]
[1741396953355,82.3,139.86,139.79,33.61109606]
[1741396953677,33.61109606,139.85,139.79,33.61109606]
[1741396954484,25.0285,139.84,139.78,33.61109606]
[1741396954685,58.63959606,139.84,139.77,35.26389606]
[1741396955061,25.0285,139.84,139.78,33.61109606]
[1741396955382,58.63959606,139.84,139.78,33.61109606]
[1741396955985,58.63959606,139.84,139.77,35.26389606]
[1741396956169,58.63959606,139.84,139.77,33.61109606]
[1741396956873,33.61109606,139.81,139.75,33.61109606]
[1741396957765,33.61109606,139.81,139.74,35.26399606]
[1741396957974,33.61109606,139.8,139.74,33.61119606]
[1741396958360,33.61109606,139.81,139.74,33.61119606]
[1741396958561,25.0356,139.8,139.75,33.11109606]
[1741396959300,58.64669606,139.8,139.74,33.61119606]
[1741396959598,25.0356,139.8,139.75,33.61109606]
[1741396961193,7.153,139.8,139.75,33.61109606]
[1741396961369,7.153,139.8,139.76,33.61109606]
[1741396961575,190.7207,139.87,139.79,33.61109606]
[1741396961576,7.1505,139.85,139.79,33.61109606]
[1741396961872,0.033,139.87,139.84,33.61109606]
[1741396962096,0.033,139.87,139.86,1.5362]
[1741396962397,7.1458,139.95,139.86,142.4015]
[1741396962570,7.1448,139.96,139.86,142.4015]
[1741396962771,7.1448,139.96,139.86,7.8015]
[1741396962970,25.007,139.96,139.86,1.5362]
[1741396963395,33.61109606,139.93,139.87,33.61109606]
[1741396964170,33.61109606,139.94,139.88,33.61109606]
[1741396964471,7.1459,139.94,139.89,33.61109606]
[1741396964885,7.1459,139.94,139.9,33.61109606]
[1741396965475,7.1459,139.94,139.89,33.61109606]
[1741396965796,7.1459,139.94,139.9,33.61109606]
[1741396966104,7.1453,139.96,139.91,33.61109606]
[1741396967086,17.8587,139.99,139.91,33.61109606]
[1741396968295,25.002,139.99,139.91,33.61109606]
[1741396971684,58.61309606,139.99,139.91,33.61109606]
[1741396971988,25.002,139.99,139.91,33.61109606]
[1741396972584,58.61309606,139.99,139.91,33.61109606]
[1741396973111,33.61109606,139.97,139.91,33.61109606]
[1741396973709,40.33109606,139.98,139.91,33.61109606]
[1741396974018,25.0052,139.97,139.91,33.61109606]
[1741396974993,7.1443,139.97,139.91,33.61109606]
[1741396976025,51.46929606,140.0,139.91,33.61109606]
[1741396976191,7.1433,139.99,139.91,33.61109606]
[1741396977402,7.1433,139.99,139.91,201.82219212]
[1741396977884,7.1433,139.99,139.91,168.21109606]
[1741396978088,17.8584,139.99,139.91,168.21109606]
[1741396978722,51.46949606,139.99,139.91,33.61109606]
[1741396980092,58.61279606,139.99,139.91,33.61109606]
[1741396980527,25.0017,139.99,139.91,33.61109606]
[1741396980813,58.61279606,139.99,139.91,33.61109606]
[1741396981412,25.0017,139.99,139.91,33.61109606]
[1741396982500,7.1433,139.99,139.91,74.36959212]
[1741396982794,7.1429,140.0,139.91,74.36959212]
[1741396982993,7.1429,140.0,139.91,75.4409963]
[1741396983614,7.1429,140.0,139.91,34.68250024]
[1741396983806,33.61109606,139.99,139.91,33.61109606]
[1741396984005,25.0,140.0,139.91,33.61109606]
[1741396984911,7.1429,140.0,139.91,75.44119321]
[1741396985502,7.1429,140.0,139.91,210.04119321]
[1741396985701,7.1429,140.0,139.91,208.96959212]
[1741396986295,7.1753,140.01,139.91,208.96959212]
[1741396986516,7.1753,140.01,139.91,212.58349212]
[1741396989104,0.033,140.01,140.0,33.61109606]
[1741396989511,0.033,140.01,139.97,33.61109606]
[1741396989924,0.033,140.01,139.96,33.61109606]
[1741396990423,0.033,140.01,139.97,33.61109606]
[1741396994100,33.64409606,140.01,139.95,33.61109606]
[1741396995729,33.61109606,139.99,139.93,40.25109606]
[1741396995930,58.61449606,139.98,139.92,33.61109606]
[1741396996331,25.0034,139.98,139.93,33.61109606]
[1741396996838,7.1438,139.98,139.95,33.61109606]
[1741396997721,58.61449606,139.98,139.9,6.62]
[1741396997928,33.61109606,139.97,139.87,8.1585]
[1741396998134,33.61109606,139.97,139.91,33.61109606]
[1741396999335,33.61109606,139.97,139.87,8.1585]
[1741396999336,58.61449606,139.98,139.92,33.61109606]
[1741397000536,58.61449606,139.98,139.91,33.61109606]
[1741397000729,33.61109606,139.97,139.91,33.61109606]
[1741397001331,33.61109606,139.97,139.91,20.98004727]
[1741397001332,20.98004727,139.97,139.91,20.98004727]
[1741397002135,25.007,139.96,139.91,20.98004727]
[1741397004150,7.1448,139.96,139.92,20.98004727]
[1741397004637,25.007,139.96,139.92,20.98004727]
[1741397005544,17.8622,139.96,139.92,20.98004727]
[1741397005833,7.1443,139.97,139.92,20.98004727]
[1741397006339,7.1443,139.97,139.93,20.98004727]
[1741397007232,7.1443,139.97,139.91,20.98004727]
[1741397007233,25.0052,139.97,139.91,20.98004727]
[1741397007624,25.0052,139.97,139.92,20.98004727]
[1741397008759,25.0052,139.97,139.91,20.98004727]
[1741397009047,25.0052,139.97,139.88,6.6]
[1741397009229,45.98524727,139.97,139.91,20.98004727]
[1741397010752,25.0052,139.97,139.92,20.98004727]
[1741397011451,25.0052,139.97,139.93,20.98004727]
[1741397011827,7.1443,139.97,139.95,20.98004727]
[1741397012526,7.177,139.98,139.96,20.98004727]
[1741397013025,0.033,139.98,139.97,20.98004727]
[1741397023371,0.033,140.01,139.97,52.17577271]
[1741397023563,0.033,140.02,140.0,43.54159454]
[1741397023873,0.033,140.02,140.01,27.54004727]
[1741397025372,0.033,140.02,140.01,34.68234727]
[1741397025579,0.03,140.04,140.01,34.68234727]
[1741397025761,0.03,140.04,140.03,20.98004727]
[1741397027055,0.03,140.04,140.03,28.12134727]
[1741397027774,0.033,140.06,140.03,28.12134727]
[1741397027958,0.033,140.06,140.05,20.98004727]
[1741397028956,0.033,140.06,140.05,28.12034727]
[1741397029787,0.03,140.09,140.05,49.10039454]
[1741397030087,0.03,140.09,140.08,20.98004727]
[1741397031781,0.03,140.09,140.08,28.11874727]
[1741397032171,0.03,140.12,140.11,8.1487]
[1741397032484,0.033,140.16,140.11,55.71865825]
[1741397032665,0.033,140.16,140.15,20.98004727]
[1741397033393,0.033,140.16,140.15,33.4429625]
[1741397045904,0.03,140.19,140.15,33.4429625]
[1741397046090,0.03,140.19,140.18,33.4429625]
[1741397048727,0.03,140.19,140.18,40.5765625]
[1741397049005,0.03,140.24,140.18,74.019525]
[1741397049183,0.03,140.24,140.2,66.885925]
[1741397049385,0.03,140.24,140.19,1.06931818]
[1741397049386,0.03,140.24,140.23,33.4429625]
[1741397052392,0.03,140.24,140.23,35.0764625]
[1741397052718,0.03,140.24,140.21,1.06937334]
[1741397053019,24.9871,140.24,140.18,33.4429625]
[1741397053183,24.9871,140.24,140.2,33.4429625]
[1741397053382,24.9871,140.24,140.2,20.89294051]